[Event "Titled Tuesday Blitz July 11 Early 2023"]
[White "Tologon tegin, Semetei"]
[Black "Garagulya, Konstantin"]
[WhiteFideId "13800574"]
[BlackFideId "4128931"]
[WhiteElo "2584"]
[BlackElo "2408"]
[Result "0-1"]
[Round "3"]
[TimeControl "180+2"]
[Date "2023.07.11"]
[WhiteClock "0:01:34"]
[BlackClock "0:02:13"]
[Board "116"]

1. Nf3 {[%clk 0:02:39]}  Nf6 {[%clk 0:02:58]} 2. b3 {[%clk 0:02:39]}  e6 {[%clk 0:02:58]} 3. Bb2 {[%clk 0:02:40]}  d5 {[%clk 0:02:59]} 4. c4 {[%clk 0:02:39]}  b6 {[%clk 0:02:55]} 5. e3 {[%clk 0:02:28]}  Bb7 {[%clk 0:02:55]} 6. Nc3 {[%clk 0:02:28]}  Nbd7 {[%clk 0:02:56]} 7. d4 {[%clk 0:02:27]}  Bd6 {[%clk 0:02:55]} 8. Bd3 {[%clk 0:02:27]}  O-O {[%clk 0:02:54]} 9. O-O {[%clk 0:02:27]}  a6 {[%clk 0:02:54]} 10. Qe2 {[%clk 0:02:25]}  Qe7 {[%clk 0:02:54]} 11. e4 {[%clk 0:02:25]}  dxe4 {[%clk 0:02:54]} 12. Nxe4 {[%clk 0:02:26]}  Nxe4 {[%clk 0:02:54]} 13. Bxe4 {[%clk 0:02:27]}  Bxe4 {[%clk 0:02:54]} 14. Qxe4 {[%clk 0:02:28]}  Nf6 {[%clk 0:02:54]} 15. Qh4 {[%clk 0:02:28]}  Nd7 {[%clk 0:02:46]} 16. Qh3 {[%clk 0:02:27]}  Rfe8 {[%clk 0:02:39]} 17. Rfe1 {[%clk 0:02:26]}  Nf8 {[%clk 0:02:39]} 18. d5 {[%clk 0:02:23]}  Qd7 {[%clk 0:02:38]} 19. Qg4 {[%clk 0:02:17]}  g6 {[%clk 0:02:37]} 20. Qg5 {[%clk 0:01:44]}  e5 {[%clk 0:02:15]} 21. Nxe5 {[%clk 0:01:43]}  Qe7 {[%clk 0:02:15]} 22. Qh6 {[%clk 0:01:40]}  f6 {[%clk 0:02:15]} 23. Ng4 {[%clk 0:01:34]}  Qxe1+ {[%clk 0:02:13]} 0-1


[Site "https://www.chess.com"]

[Event "Titled Tuesday Blitz July 11 Early 2023"]
[White "Lana Rodriguez, David"]
[Black "Rios Escobar, Adan"]
[WhiteFideId "2270803"]
[BlackFideId "3403645"]
[WhiteElo "2582"]
[BlackElo "2403"]
[Result "1-0"]
[Round "3"]
[TimeControl "180+2"]
[Date "2023.07.11"]
[WhiteClock "0:02:03"]
[BlackClock "0:00:00"]
[Board "117"]

1. e4 {[%clk 0:03:00]}  c5 {[%clk 0:02:59]} 2. Nf3 {[%clk 0:03:00]}  d6 {[%clk 0:02:59]} 3. d4 {[%clk 0:02:59]}  cxd4 {[%clk 0:02:59]} 4. Qxd4 {[%clk 0:03:00]}  Nf6 {[%clk 0:03:00]} 5. Be2 {[%clk 0:02:59]}  Nc6 {[%clk 0:03:00]} 6. Qe3 {[%clk 0:03:00]}  g6 {[%clk 0:02:56]} 7. O-O {[%clk 0:02:59]}  Bg7 {[%clk 0:02:56]} 8. Rd1 {[%clk 0:03:00]}  O-O {[%clk 0:02:44]} 9. h3 {[%clk 0:03:00]}  Qc7 {[%clk 0:02:26]} 10. c4 {[%clk 0:02:59]}  a6 {[%clk 0:02:21]} 11. Nc3 {[%clk 0:03:00]}  Rb8 {[%clk 0:02:20]} 12. Bd2 {[%clk 0:02:57]}  Be6 {[%clk 0:02:19]} 13. Rac1 {[%clk 0:02:57]}  Rfc8 {[%clk 0:01:52]} 14. Nd5 {[%clk 0:02:56]}  Qd8 {[%clk 0:01:52]} 15. Bc3 {[%clk 0:02:54]}  Nd7 {[%clk 0:01:41]} 16. Bxg7 {[%clk 0:02:52]}  Kxg7 {[%clk 0:01:42]} 17. Qc3+ {[%clk 0:02:49]}  f6 {[%clk 0:01:42]} 18. b4 {[%clk 0:02:35]}  Nce5 {[%clk 0:01:34]} 19. Nd4 {[%clk 0:02:29]}  Bxd5 {[%clk 0:01:32]} 20. exd5 {[%clk 0:02:30]}  Qb6 {[%clk 0:01:12]} 21. Ne6+ {[%clk 0:02:29]}  Kg8 {[%clk 0:01:02]} 22. Qd2 {[%clk 0:02:30]}  Nf7 {[%clk 0:00:55]} 23. a4 {[%clk 0:02:24]}  a5 {[%clk 0:00:54]} 24. bxa5 {[%clk 0:02:23]}  Qa7 {[%clk 0:00:53]} 25. Rb1 {[%clk 0:02:22]}  Nc5 {[%clk 0:00:49]} 26. Nxc5 {[%clk 0:02:20]}  Rxc5 {[%clk 0:00:48]} 27. Rb5 {[%clk 0:02:20]}  Ne5 {[%clk 0:00:43]} 28. Qb4 {[%clk 0:02:14]}  Rc7 {[%clk 0:00:27]} 29. Rb1 {[%clk 0:02:14]}  Rbc8 {[%clk 0:00:22]} 30. Rxb7 {[%clk 0:02:10]}  Qd4 {[%clk 0:00:06]} 31. Rxc7 {[%clk 0:02:09]}  Rxc7 {[%clk 0:00:07]} 32. Qb8+ {[%clk 0:02:09]}  Kf7 {[%clk 0:00:07]} 33. Qxc7 {[%clk 0:02:10]}  Qe4 {[%clk 0:00:07]} 34. Re1 {[%clk 0:02:08]}  Nd3 {[%clk 0:00:06]} 35. Bxd3 {[%clk 0:02:09]}  Qxe1+ {[%clk 0:00:06]} 36. Bf1 {[%clk 0:02:09]}  Qb4 {[%clk 0:00:04]} 37. a6 {[%clk 0:02:07]}  Qxa4 {[%clk 0:00:04]} 38. a7 {[%clk 0:02:06]}  h5 {[%clk 0:00:02]} 39. Qb7 {[%clk 0:02:05]}  Qd1 {[%clk 0:00:01]} 40. a8=Q {[%clk 0:02:05]}  h4 {[%clk 0:00:01]} 41. Qbc8 {[%clk 0:02:04]}  f5 {[%clk 0:00:00]} 42. Qh8 {[%clk 0:02:03]} 1-0


[Site "https://www.chess.com"]

[Event "Titled Tuesday Blitz July 11 Early 2023"]
[White "Topalov, Aleksandar"]
[Black "Geivondian, Arman"]
[WhiteFideId "925659"]
[BlackFideId "24102032"]
[WhiteElo "2399"]
[BlackElo "2580"]
[Result "1-0"]
[Round "3"]
[TimeControl "180+2"]
[Date "2023.07.11"]
[WhiteClock "0:00:13"]
[BlackClock "0:01:30"]
[Board "118"]

1. b3 {[%clk 0:03:00]}  e5 {[%clk 0:02:58]} 2. Bb2 {[%clk 0:03:00]}  Nc6 {[%clk 0:02:58]} 3. c4 {[%clk 0:03:00]}  Nf6 {[%clk 0:02:58]} 4. e3 {[%clk 0:02:59]}  d5 {[%clk 0:02:58]} 5. cxd5 {[%clk 0:02:59]}  Nxd5 {[%clk 0:02:59]} 6. a3 {[%clk 0:02:57]}  Be6 {[%clk 0:02:59]} 7. Qc2 {[%clk 0:02:56]}  Qd7 {[%clk 0:02:59]} 8. Nf3 {[%clk 0:02:56]}  f6 {[%clk 0:02:59]} 9. Be2 {[%clk 0:02:55]}  O-O-O {[%clk 0:02:59]} 10. d3 {[%clk 0:02:54]}  Bd6 {[%clk 0:02:59]} 11. Nbd2 {[%clk 0:02:54]}  g5 {[%clk 0:02:58]} 12. Nc4 {[%clk 0:02:45]}  g4 {[%clk 0:02:58]} 13. Nfd2 {[%clk 0:02:45]}  f5 {[%clk 0:02:59]} 14. O-O-O {[%clk 0:02:41]}  f4 {[%clk 0:02:58]} 15. e4 {[%clk 0:02:36]}  Nde7 {[%clk 0:02:55]} 16. Kb1 {[%clk 0:02:31]}  Ng6 {[%clk 0:02:55]} 17. Rc1 {[%clk 0:02:12]}  Kb8 {[%clk 0:02:54]} 18. Rhd1 {[%clk 0:02:10]}  h5 {[%clk 0:02:53]} 19. b4 {[%clk 0:02:04]}  a6 {[%clk 0:02:52]} 20. Nb3 {[%clk 0:01:56]}  Be7 {[%clk 0:02:50]} 21. d4 {[%clk 0:01:51]}  Nxd4 {[%clk 0:02:46]} 22. Nxd4 {[%clk 0:01:51]}  exd4 {[%clk 0:02:47]} 23. Rxd4 {[%clk 0:01:50]}  Qe8 {[%clk 0:02:45]} 24. Rxd8+ {[%clk 0:01:49]}  Qxd8 {[%clk 0:02:46]} 25. Bxh8 {[%clk 0:01:49]}  Qxh8 {[%clk 0:02:47]} 26. Na5 {[%clk 0:01:32]}  Bd6 {[%clk 0:02:46]} 27. Nc4 {[%clk 0:01:26]}  Be7 {[%clk 0:02:43]} 28. f3 {[%clk 0:01:23]}  g3 {[%clk 0:02:43]} 29. h3 {[%clk 0:01:15]}  Bf6 {[%clk 0:02:41]} 30. Na5 {[%clk 0:01:01]}  Be5 {[%clk 0:02:32]} 31. Nc4 {[%clk 0:00:46]}  Bd4 {[%clk 0:02:30]} 32. Rd1 {[%clk 0:00:44]}  Ne7 {[%clk 0:02:22]} 33. Qd2 {[%clk 0:00:36]}  Bf2 {[%clk 0:02:08]} 34. Qd8+ {[%clk 0:00:35]}  Qxd8 {[%clk 0:02:07]} 35. Rxd8+ {[%clk 0:00:34]}  Ka7 {[%clk 0:02:02]} 36. Re8 {[%clk 0:00:31]}  Bxh3 {[%clk 0:02:02]} 37. Bf1 {[%clk 0:00:24]}  Nc6 {[%clk 0:01:46]} 38. gxh3 {[%clk 0:00:24]}  Nd4 {[%clk 0:01:46]} 39. Nd2 {[%clk 0:00:20]}  Be3 {[%clk 0:01:45]} 40. Rd8 {[%clk 0:00:14]}  b6 {[%clk 0:01:37]} 41. Rxd4 {[%clk 0:00:14]}  Bxd4 {[%clk 0:01:36]} 42. Nb3 {[%clk 0:00:13]}  Be5 {[%clk 0:01:34]} 43. a4 {[%clk 0:00:13]}  b5 {[%clk 0:01:34]} 44. axb5 {[%clk 0:00:12]}  axb5 {[%clk 0:01:35]} 45. Kc2 {[%clk 0:00:12]}  Kb6 {[%clk 0:01:35]} 46. Nc5 {[%clk 0:00:12]}  c6 {[%clk 0:01:32]} 47. Nd7+ {[%clk 0:00:12]}  Kc7 {[%clk 0:01:30]} 48. Nxe5 {[%clk 0:00:12]}  Kd6 {[%clk 0:01:31]} 49. Ng6 {[%clk 0:00:12]}  c5 {[%clk 0:01:32]} 50. Nxf4 {[%clk 0:00:12]}  cxb4 {[%clk 0:01:32]} 51. Ne2 {[%clk 0:00:12]}  h4 {[%clk 0:01:32]} 52. Nf4 {[%clk 0:00:12]}  Ke5 {[%clk 0:01:32]} 53. Ng6+ {[%clk 0:00:12]}  Kd4 {[%clk 0:01:31]} 54. Nxh4 {[%clk 0:00:12]}  Ke3 {[%clk 0:01:32]} 55. e5 {[%clk 0:00:12]}  Kf2 {[%clk 0:01:30]} 56. Bg2 {[%clk 0:00:13]} 1-0


[Site "https://www.chess.com"]

[Event "Titled Tuesday Blitz July 11 Early 2023"]
[White "Bueno, Alfeu Junior Varela"]
[Black "Manukyan, Artyom"]
[WhiteFideId "2108879"]
[BlackFideId "13305786"]
[WhiteElo "2387"]
[BlackElo "2577"]
[Result "0-1"]
[Round "3"]
[TimeControl "180+2"]
[Date "2023.07.11"]
[WhiteClock "0:00:11"]
[BlackClock "0:00:16"]
[Board "121"]

1. e4 {[%clk 0:03:00]}  c5 {[%clk 0:02:59]} 2. Nc3 {[%clk 0:03:01]}  d6 {[%clk 0:02:58]} 3. f4 {[%clk 0:03:01]}  Nc6 {[%clk 0:02:58]} 4. Bb5 {[%clk 0:03:01]}  Bd7 {[%clk 0:02:58]} 5. Nf3 {[%clk 0:03:01]}  e6 {[%clk 0:02:56]} 6. d3 {[%clk 0:03:00]}  Nf6 {[%clk 0:02:56]} 7. O-O {[%clk 0:02:59]}  Be7 {[%clk 0:02:57]} 8. Bxc6 {[%clk 0:02:57]}  Bxc6 {[%clk 0:02:56]} 9. Qe1 {[%clk 0:02:58]}  O-O {[%clk 0:02:56]} 10. Qg3 {[%clk 0:02:58]}  b5 {[%clk 0:02:51]} 11. f5 {[%clk 0:02:52]}  b4 {[%clk 0:02:32]} 12. Ne2 {[%clk 0:02:52]}  exf5 {[%clk 0:02:30]} 13. Bh6 {[%clk 0:02:41]}  Nh5 {[%clk 0:02:30]} 14. Qh3 {[%clk 0:02:42]}  fxe4 {[%clk 0:02:19]} 15. Qxh5 {[%clk 0:02:34]}  exf3 {[%clk 0:02:15]} 16. Qg4 {[%clk 0:02:34]}  g6 {[%clk 0:02:06]} 17. gxf3 {[%clk 0:02:13]}  f5 {[%clk 0:01:50]} 18. Qc4+ {[%clk 0:02:07]}  d5 {[%clk 0:01:47]} 19. Qa6 {[%clk 0:02:07]}  Rf6 {[%clk 0:01:47]} 20. Bg5 {[%clk 0:01:58]}  Rd6 {[%clk 0:01:45]} 21. Bf4 {[%clk 0:01:30]}  Re6 {[%clk 0:01:39]} 22. d4 {[%clk 0:01:30]}  Qc8 {[%clk 0:01:12]} 23. Qd3 {[%clk 0:01:14]}  Qb7 {[%clk 0:01:03]} 24. Be5 {[%clk 0:00:50]}  cxd4 {[%clk 0:00:57]} 25. f4 {[%clk 0:00:37]}  Bc5 {[%clk 0:00:49]} 26. Kg2 {[%clk 0:00:20]}  Bb5 {[%clk 0:00:46]} 27. Qd2 {[%clk 0:00:19]}  Rae8 {[%clk 0:00:40]} 28. Nxd4 {[%clk 0:00:16]}  Bxf1+ {[%clk 0:00:39]} 29. Rxf1 {[%clk 0:00:15]}  Bxd4 {[%clk 0:00:32]} 30. Qxd4 {[%clk 0:00:16]}  Qc6 {[%clk 0:00:32]} 31. Rf2 {[%clk 0:00:16]}  Qc4 {[%clk 0:00:32]} 32. Qxa7 {[%clk 0:00:15]}  Qe4+ {[%clk 0:00:29]} 33. Kg3 {[%clk 0:00:15]}  R6e7 {[%clk 0:00:25]} 34. Qb6 {[%clk 0:00:13]}  d4 {[%clk 0:00:19]} 35. Qxb4 {[%clk 0:00:11]}  Rxe5 {[%clk 0:00:15]} 36. fxe5 {[%clk 0:00:11]}  Qg4# {[%clk 0:00:16]} 0-1


[Site "https://www.chess.com"]

[Event "Titled Tuesday Blitz July 11 Early 2023"]
[White "Leebit02"]
[Black "Molina Carretero, Daniel"]
[BlackFideId "32071914"]
[WhiteElo "2574"]
[BlackElo "2376"]
[Result "1-0"]
[Round "3"]
[TimeControl "180+2"]
[Date "2023.07.11"]
[WhiteClock "0:00:16"]
[BlackClock "0:00:53"]
[Board "123"]

1. e4 {[%clk 0:03:00]}  c5 {[%clk 0:03:00]} 2. Nf3 {[%clk 0:03:00]}  d6 {[%clk 0:03:00]} 3. d4 {[%clk 0:03:00]}  cxd4 {[%clk 0:03:01]} 4. Nxd4 {[%clk 0:03:01]}  Nf6 {[%clk 0:03:01]} 5. Nc3 {[%clk 0:03:01]}  g6 {[%clk 0:03:02]} 6. f3 {[%clk 0:02:59]}  Nc6 {[%clk 0:03:00]} 7. Be3 {[%clk 0:02:59]}  Bg7 {[%clk 0:03:01]} 8. Qd2 {[%clk 0:02:58]}  O-O {[%clk 0:03:01]} 9. O-O-O {[%clk 0:02:59]}  d5 {[%clk 0:03:00]} 10. exd5 {[%clk 0:02:58]}  Nxd5 {[%clk 0:02:57]} 11. Nxc6 {[%clk 0:02:58]}  bxc6 {[%clk 0:02:58]} 12. Bd4 {[%clk 0:02:58]}  Bxd4 {[%clk 0:02:56]} 13. Qxd4 {[%clk 0:02:58]}  Qb6 {[%clk 0:02:56]} 14. Na4 {[%clk 0:02:58]}  Qa5 {[%clk 0:02:56]} 15. b3 {[%clk 0:02:45]}  Qc7 {[%clk 0:02:55]} 16. Bc4 {[%clk 0:02:36]}  Rd8 {[%clk 0:02:48]} 17. Rhe1 {[%clk 0:02:21]}  Be6 {[%clk 0:02:40]} 18. Nc5 {[%clk 0:01:27]}  Nf4 {[%clk 0:02:36]} 19. Nxe6 {[%clk 0:01:22]}  Nxe6 {[%clk 0:02:34]} 20. Qc3 {[%clk 0:01:13]}  Qxh2 {[%clk 0:02:17]} 21. Rxe6 {[%clk 0:00:57]}  Rxd1+ {[%clk 0:02:16]} 22. Kxd1 {[%clk 0:00:55]}  Rd8+ {[%clk 0:02:06]} 23. Kc1 {[%clk 0:00:53]}  Qg1+ {[%clk 0:01:47]} 24. Re1 {[%clk 0:00:52]}  Qxg2 {[%clk 0:01:47]} 25. Kb2 {[%clk 0:00:40]}  Qg5 {[%clk 0:01:39]} 26. Re5 {[%clk 0:00:32]}  Qf6 {[%clk 0:01:34]} 27. f4 {[%clk 0:00:28]}  h5 {[%clk 0:01:30]} 28. Qe3 {[%clk 0:00:27]}  Kg7 {[%clk 0:01:21]} 29. Qxa7 {[%clk 0:00:22]}  h4 {[%clk 0:01:07]} 30. Qe3 {[%clk 0:00:21]}  Rh8 {[%clk 0:01:05]} 31. Bf1 {[%clk 0:00:19]}  Rh5 {[%clk 0:00:59]} 32. Bh3 {[%clk 0:00:19]}  g5 {[%clk 0:00:57]} 33. fxg5 {[%clk 0:00:16]}  Rxg5 {[%clk 0:00:53]} 34. Qxg5+ {[%clk 0:00:16]} 1-0


[Site "https://www.chess.com"]

[Event "Titled Tuesday Blitz July 11 Early 2023"]
[White "Goldin, Roman"]
[Black "Gontcharov, Vladislav"]
[WhiteFideId "2803860"]
[BlackFideId "4123492"]
[WhiteElo "2383"]
[BlackElo "2573"]
[Result "0-1"]
[Round "3"]
[TimeControl "180+2"]
[Date "2023.07.11"]
[WhiteClock "0:00:00"]
[BlackClock "0:00:13"]
[Board "124"]

1. Nf3 {[%clk 0:03:00]}  Nf6 {[%clk 0:02:58]} 2. e3 {[%clk 0:02:58]}  c5 {[%clk 0:02:57]} 3. b3 {[%clk 0:02:53]}  g6 {[%clk 0:02:50]} 4. Bb2 {[%clk 0:02:53]}  Bg7 {[%clk 0:02:50]} 5. c4 {[%clk 0:02:52]}  O-O {[%clk 0:02:49]} 6. Be2 {[%clk 0:02:52]}  Nc6 {[%clk 0:02:42]} 7. O-O {[%clk 0:02:52]}  b6 {[%clk 0:02:37]} 8. d4 {[%clk 0:02:52]}  cxd4 {[%clk 0:02:37]} 9. Nxd4 {[%clk 0:02:47]}  Bb7 {[%clk 0:02:36]} 10. Bf3 {[%clk 0:02:35]}  Qc8 {[%clk 0:02:35]} 11. Nc3 {[%clk 0:02:29]}  Ne5 {[%clk 0:02:21]} 12. Bxb7 {[%clk 0:02:25]}  Qxb7 {[%clk 0:02:20]} 13. Nde2 {[%clk 0:02:11]}  d6 {[%clk 0:02:02]} 14. h3 {[%clk 0:02:03]}  Rac8 {[%clk 0:01:59]} 15. Nf4 {[%clk 0:01:55]}  Rfd8 {[%clk 0:01:55]} 16. Qe2 {[%clk 0:01:46]}  a6 {[%clk 0:01:45]} 17. Rac1 {[%clk 0:01:29]}  Rb8 {[%clk 0:01:40]} 18. Ncd5 {[%clk 0:01:02]}  Nxd5 {[%clk 0:01:25]} 19. cxd5 {[%clk 0:00:53]}  Rbc8 {[%clk 0:01:19]} 20. Bd4 {[%clk 0:00:40]}  b5 {[%clk 0:01:13]} 21. Qb2 {[%clk 0:00:31]}  Bf6 {[%clk 0:00:42]} 22. Rcd1 {[%clk 0:00:24]}  Rc7 {[%clk 0:00:26]} 23. Rd2 {[%clk 0:00:24]}  Rdc8 {[%clk 0:00:26]} 24. Rfd1 {[%clk 0:00:24]}  a5 {[%clk 0:00:24]} 25. Kh1 {[%clk 0:00:21]}  b4 {[%clk 0:00:22]} 26. Kh2 {[%clk 0:00:10]}  Rc3 {[%clk 0:00:20]} 27. Ne2 {[%clk 0:00:05]}  R3c7 {[%clk 0:00:17]} 28. f4 {[%clk 0:00:05]}  Nd7 {[%clk 0:00:17]} 29. Bxf6 {[%clk 0:00:05]}  Nxf6 {[%clk 0:00:18]} 30. Ng3 {[%clk 0:00:05]}  Rc3 {[%clk 0:00:17]} 31. e4 {[%clk 0:00:04]}  Rxg3 {[%clk 0:00:17]} 32. Kxg3 {[%clk 0:00:04]}  Nxe4+ {[%clk 0:00:17]} 33. Kh2 {[%clk 0:00:05]}  Nxd2 {[%clk 0:00:18]} 34. Qxd2 {[%clk 0:00:05]}  Rc3 {[%clk 0:00:17]} 35. f5 {[%clk 0:00:06]}  f6 {[%clk 0:00:17]} 36. Qe2 {[%clk 0:00:04]}  Kg7 {[%clk 0:00:15]} 37. Qe6 {[%clk 0:00:04]}  Rc2 {[%clk 0:00:13]} 38. Re1 {[%clk 0:00:04]}  Rxa2 {[%clk 0:00:13]} 39. Qxe7+ {[%clk 0:00:04]}  Qxe7 {[%clk 0:00:14]} 40. Rxe7+ {[%clk 0:00:04]}  Kg8 {[%clk 0:00:14]} 41. Rd7 {[%clk 0:00:03]}  a4 {[%clk 0:00:14]} 42. Rxd6 {[%clk 0:00:03]}  axb3 {[%clk 0:00:14]} 43. fxg6 {[%clk 0:00:03]}  hxg6 {[%clk 0:00:13]} 44. Rxf6 {[%clk 0:00:00]}  b2 {[%clk 0:00:13]} 0-1


[Site "https://www.chess.com"]

[Event "Titled Tuesday Blitz July 11 Early 2023"]
[White "Fieberg, Samuel"]
[Black "Prestia, Paris"]
[WhiteFideId "12901717"]
[BlackFideId "30925959"]
[WhiteElo "2375"]
[BlackElo "2571"]
[Result "0-1"]
[Round "3"]
[TimeControl "180+2"]
[Date "2023.07.11"]
[WhiteClock "0:00:37"]
[BlackClock "0:01:32"]
[Board "126"]

1. d4 {[%clk 0:03:00]}  Nf6 {[%clk 0:03:00]} 2. Nc3 {[%clk 0:03:00]}  d5 {[%clk 0:02:57]} 3. Bf4 {[%clk 0:03:00]}  e6 {[%clk 0:02:54]} 4. Nb5 {[%clk 0:02:59]}  Na6 {[%clk 0:02:52]} 5. e3 {[%clk 0:02:58]}  c6 {[%clk 0:02:52]} 6. Nc3 {[%clk 0:02:55]}  Nc7 {[%clk 0:02:41]} 7. Nf3 {[%clk 0:02:53]}  a6 {[%clk 0:02:39]} 8. Bd3 {[%clk 0:02:53]}  Nb5 {[%clk 0:02:39]} 9. Nxb5 {[%clk 0:02:41]}  axb5 {[%clk 0:02:40]} 10. Ne5 {[%clk 0:02:37]}  Be7 {[%clk 0:02:37]} 11. c3 {[%clk 0:02:34]}  Nd7 {[%clk 0:02:36]} 12. a3 {[%clk 0:02:25]}  Nxe5 {[%clk 0:02:25]} 13. Bxe5 {[%clk 0:02:26]}  f6 {[%clk 0:02:25]} 14. Bg3 {[%clk 0:02:22]}  O-O {[%clk 0:02:24]} 15. Qh5 {[%clk 0:02:05]}  h6 {[%clk 0:02:14]} 16. Qg6 {[%clk 0:01:51]}  f5 {[%clk 0:02:13]} 17. Be5 {[%clk 0:01:51]}  Bf6 {[%clk 0:02:09]} 18. f4 {[%clk 0:01:51]}  Bd7 {[%clk 0:02:08]} 19. g4 {[%clk 0:01:44]}  Be8 {[%clk 0:02:08]} 20. gxf5 {[%clk 0:01:31]}  Bxg6 {[%clk 0:02:07]} 21. fxg6 {[%clk 0:01:32]}  Bxe5 {[%clk 0:02:06]} 22. dxe5 {[%clk 0:01:29]}  Qh4+ {[%clk 0:02:06]} 23. Kd2 {[%clk 0:01:27]}  b4 {[%clk 0:01:54]} 24. axb4 {[%clk 0:01:20]}  Rxa1 {[%clk 0:01:52]} 25. Rxa1 {[%clk 0:01:21]}  Qxh2+ {[%clk 0:01:52]} 26. Be2 {[%clk 0:01:20]}  h5 {[%clk 0:01:48]} 27. Rf1 {[%clk 0:01:15]}  h4 {[%clk 0:01:48]} 28. Kd3 {[%clk 0:01:11]}  h3 {[%clk 0:01:48]} 29. Bf3 {[%clk 0:01:06]}  Qxb2 {[%clk 0:01:43]} 30. Rh1 {[%clk 0:01:06]}  h2 {[%clk 0:01:42]} 31. Be2 {[%clk 0:01:06]}  Ra8 {[%clk 0:01:38]} 32. Bg4 {[%clk 0:00:49]}  Qg2 {[%clk 0:01:34]} 33. Bxe6+ {[%clk 0:00:49]}  Kf8 {[%clk 0:01:33]} 34. f5 {[%clk 0:00:37]}  Qe4+ {[%clk 0:01:32]} 0-1


[Site "https://www.chess.com"]

[Event "Titled Tuesday Blitz July 11 Early 2023"]
[White "Bashirli, Saadat"]
[Black "Bruedigam, Martin"]
[WhiteFideId "13429990"]
[BlackFideId "24608033"]
[WhiteElo "2356"]
[BlackElo "2559"]
[Result "1-0"]
[Round "3"]
[TimeControl "180+2"]
[Date "2023.07.11"]
[WhiteClock "0:00:05"]
[BlackClock "0:00:00"]
[Board "131"]

1. e4 {[%clk 0:03:00]}  e6 {[%clk 0:02:58]} 2. d4 {[%clk 0:02:59]}  d5 {[%clk 0:02:59]} 3. Nc3 {[%clk 0:02:59]}  dxe4 {[%clk 0:02:59]} 4. Nxe4 {[%clk 0:02:58]}  Nd7 {[%clk 0:02:59]} 5. Nf3 {[%clk 0:02:57]}  Be7 {[%clk 0:02:58]} 6. c3 {[%clk 0:02:56]}  Ngf6 {[%clk 0:02:54]} 7. Bd3 {[%clk 0:02:56]}  b6 {[%clk 0:02:52]} 8. O-O {[%clk 0:02:56]}  Bb7 {[%clk 0:02:52]} 9. Re1 {[%clk 0:02:54]}  O-O {[%clk 0:02:47]} 10. Qc2 {[%clk 0:02:50]}  h6 {[%clk 0:02:45]} 11. Bd2 {[%clk 0:02:44]}  c5 {[%clk 0:02:44]} 12. dxc5 {[%clk 0:02:40]}  Nxc5 {[%clk 0:02:43]} 13. Nxc5 {[%clk 0:02:37]}  Bxc5 {[%clk 0:02:43]} 14. Be2 {[%clk 0:02:35]}  Qc7 {[%clk 0:02:31]} 15. h3 {[%clk 0:02:27]}  Rfd8 {[%clk 0:02:14]} 16. Rad1 {[%clk 0:02:23]}  Ne4 {[%clk 0:01:19]} 17. Rf1 {[%clk 0:02:09]}  Nxd2 {[%clk 0:01:06]} 18. Rxd2 {[%clk 0:01:59]}  Rxd2 {[%clk 0:01:05]} 19. Qxd2 {[%clk 0:01:58]}  Rd8 {[%clk 0:01:06]} 20. Qc2 {[%clk 0:01:51]}  g6 {[%clk 0:00:55]} 21. Rd1 {[%clk 0:01:24]}  Re8 {[%clk 0:00:42]} 22. a3 {[%clk 0:01:08]}  Kg7 {[%clk 0:00:39]} 23. b4 {[%clk 0:01:06]}  Be7 {[%clk 0:00:38]} 24. c4 {[%clk 0:01:00]}  Bf6 {[%clk 0:00:33]} 25. a4 {[%clk 0:00:43]}  a5 {[%clk 0:00:21]} 26. bxa5 {[%clk 0:00:36]}  bxa5 {[%clk 0:00:22]} 27. Rb1 {[%clk 0:00:34]}  Bc6 {[%clk 0:00:18]} 28. Qb3 {[%clk 0:00:29]}  Qd7 {[%clk 0:00:14]} 29. Bd1 {[%clk 0:00:22]}  Rd8 {[%clk 0:00:13]} 30. Qb6 {[%clk 0:00:16]}  Ra8 {[%clk 0:00:13]} 31. Qb3 {[%clk 0:00:14]}  h5 {[%clk 0:00:13]} 32. Qa3 {[%clk 0:00:11]}  Be7 {[%clk 0:00:06]} 33. Qb3 {[%clk 0:00:10]}  Bd6 {[%clk 0:00:06]} 34. Bc2 {[%clk 0:00:09]}  Qc7 {[%clk 0:00:05]} 35. Qc3+ {[%clk 0:00:08]}  Kg8 {[%clk 0:00:05]} 36. c5 {[%clk 0:00:07]}  Bxf3 {[%clk 0:00:04]} 37. Qxf3 {[%clk 0:00:07]}  Rd8 {[%clk 0:00:02]} 38. cxd6 {[%clk 0:00:07]}  Qxc2 {[%clk 0:00:00]} 39. Rd1 {[%clk 0:00:05]} 1-0


[Site "https://www.chess.com"]

[Event "Titled Tuesday Blitz July 11 Early 2023"]
[White "Shapiro, Daniel"]
[Black "Zubarev, Alexander"]
[WhiteFideId "2001780"]
[BlackFideId "14104385"]
[WhiteElo "2346"]
[BlackElo "2553"]
[Result "0-1"]
[Round "3"]
[TimeControl "180+2"]
[Date "2023.07.11"]
[WhiteClock "0:00:08"]
[BlackClock "0:00:04"]
[Board "133"]

1. d4 {[%clk 0:03:00]}  e6 {[%clk 0:02:59]} 2. c4 {[%clk 0:03:00]}  b6 {[%clk 0:02:56]} 3. Nf3 {[%clk 0:02:57]}  Bb7 {[%clk 0:02:56]} 4. a3 {[%clk 0:02:58]}  f5 {[%clk 0:02:54]} 5. Nc3 {[%clk 0:02:57]}  Nf6 {[%clk 0:02:54]} 6. Bf4 {[%clk 0:02:52]}  Bd6 {[%clk 0:02:41]} 7. e3 {[%clk 0:02:45]}  Bxf4 {[%clk 0:02:41]} 8. exf4 {[%clk 0:02:45]}  O-O {[%clk 0:02:41]} 9. Bd3 {[%clk 0:02:42]}  d5 {[%clk 0:02:17]} 10. Qe2 {[%clk 0:02:39]}  Ne4 {[%clk 0:02:15]} 11. O-O {[%clk 0:02:27]}  Nd7 {[%clk 0:02:12]} 12. Ng5 {[%clk 0:02:20]}  Qf6 {[%clk 0:01:11]} 13. Qe3 {[%clk 0:02:13]}  Rae8 {[%clk 0:00:56]} 14. Rac1 {[%clk 0:02:12]}  c5 {[%clk 0:00:51]} 15. dxc5 {[%clk 0:01:56]}  d4 {[%clk 0:00:38]} 16. Qh3 {[%clk 0:01:45]}  Nxg5 {[%clk 0:00:31]} 17. fxg5 {[%clk 0:01:45]}  Qxg5 {[%clk 0:00:32]} 18. Nb5 {[%clk 0:01:40]}  Nxc5 {[%clk 0:00:31]} 19. Bb1 {[%clk 0:01:22]}  Rd8 {[%clk 0:00:24]} 20. Rfe1 {[%clk 0:01:17]}  d3 {[%clk 0:00:19]} 21. Rcd1 {[%clk 0:01:17]}  a6 {[%clk 0:00:14]} 22. Nc7 {[%clk 0:01:14]}  d2 {[%clk 0:00:11]} 23. Re2 {[%clk 0:01:13]}  Rd4 {[%clk 0:00:09]} 24. f3 {[%clk 0:00:47]}  Qe7 {[%clk 0:00:08]} 25. Nd5 {[%clk 0:00:44]}  Bxd5 {[%clk 0:00:07]} 26. cxd5 {[%clk 0:00:45]}  Rxd5 {[%clk 0:00:07]} 27. Rexd2 {[%clk 0:00:45]}  Rxd2 {[%clk 0:00:05]} 28. Rxd2 {[%clk 0:00:46]}  Rd8 {[%clk 0:00:06]} 29. Rf2 {[%clk 0:00:19]}  Rd1+ {[%clk 0:00:05]} 30. Rf1 {[%clk 0:00:19]}  Qd6 {[%clk 0:00:05]} 31. Ba2 {[%clk 0:00:08]}  Qd4+ {[%clk 0:00:04]} 0-1


[Site "https://www.chess.com"]